[Event "Chessable Masters - Torneo preliminare"]
[White "Harikrishna, Pentala"]
[Black "Lenderman, Aleksandr"]
[WhiteFideId "5007003"]
[BlackFideId "2021285"]
[WhiteElo "2627"]
[BlackElo "2646"]
[Result "1/2-1/2"]
[Round "3"]
[TimeControl "600+2"]
[Date "2023.03.13"]
[WhiteClock "0:00:07"]
[BlackClock "0:01:21"]

1. Nf3 {[%clk 0:10:01]}  d5 {[%clk 0:09:55]} 2. g3 {[%clk 0:10:02]}  c6 {[%clk 0:09:44]} 3. Bg2 {[%clk 0:10:02]}  Bg4 {[%clk 0:09:45]} 4. h3 {[%clk 0:10:00]}  Bh5 {[%clk 0:09:45]} 5. O-O {[%clk 0:09:58]}  Nd7 {[%clk 0:09:44]} 6. d4 {[%clk 0:09:56]}  e6 {[%clk 0:09:41]} 7. c4 {[%clk 0:09:54]}  Ngf6 {[%clk 0:09:35]} 8. cxd5 {[%clk 0:09:52]}  exd5 {[%clk 0:09:34]} 9. Qb3 {[%clk 0:09:53]}  Qb6 {[%clk 0:09:33]} 10. Qe3+ {[%clk 0:09:54]}  Be7 {[%clk 0:09:32]} 11. Nh4 {[%clk 0:09:55]}  Bg6 {[%clk 0:09:27]} 12. Nc3 {[%clk 0:09:51]}  Bc2 {[%clk 0:07:51]} 13. Qd2 {[%clk 0:09:20]}  Be4 {[%clk 0:07:50]} 14. Nxe4 {[%clk 0:09:21]}  Nxe4 {[%clk 0:07:46]} 15. Bxe4 {[%clk 0:09:21]}  Bxh4 {[%clk 0:07:16]} 16. Bf3 {[%clk 0:08:46]}  Be7 {[%clk 0:07:10]} 17. Qe3 {[%clk 0:07:26]}  Nf8 {[%clk 0:07:04]} 18. Rd1 {[%clk 0:07:24]}  h5 {[%clk 0:06:42]} 19. Qe5 {[%clk 0:06:32]}  Ne6 {[%clk 0:06:35]} 20. Bxh5 {[%clk 0:06:10]}  Kf8 {[%clk 0:05:41]} 21. Be3 {[%clk 0:04:04]}  Bf6 {[%clk 0:04:53]} 22. Qf5 {[%clk 0:04:01]}  Ke7 {[%clk 0:04:54]} 23. Bg4 {[%clk 0:03:51]}  Rae8 {[%clk 0:04:34]} 24. Qd3 {[%clk 0:03:39]}  Kf8 {[%clk 0:04:28]} 25. Rab1 {[%clk 0:03:26]}  Ng5 {[%clk 0:04:24]} 26. Bxg5 {[%clk 0:03:21]}  Bxg5 {[%clk 0:04:23]} 27. b4 {[%clk 0:03:18]}  a6 {[%clk 0:03:32]} 28. a4 {[%clk 0:03:16]}  Be7 {[%clk 0:03:34]} 29. Qb3 {[%clk 0:03:05]}  Rd8 {[%clk 0:03:22]} 30. e3 {[%clk 0:03:03]}  g6 {[%clk 0:03:23]} 31. Kg2 {[%clk 0:03:03]}  Kg7 {[%clk 0:03:22]} 32. h4 {[%clk 0:02:59]}  Rd6 {[%clk 0:03:19]} 33. Rh1 {[%clk 0:02:58]}  Bf6 {[%clk 0:02:50]} 34. h5 {[%clk 0:02:54]}  gxh5 {[%clk 0:02:49]} 35. Rxh5 {[%clk 0:02:52]}  Rxh5 {[%clk 0:02:50]} 36. Bxh5 {[%clk 0:02:54]}  Rd8 {[%clk 0:02:46]} 37. Bf3 {[%clk 0:02:54]}  Rh8 {[%clk 0:02:45]} 38. b5 {[%clk 0:02:55]}  axb5 {[%clk 0:02:46]} 39. axb5 {[%clk 0:02:56]}  Qc7 {[%clk 0:02:43]} 40. Bg4 {[%clk 0:02:44]}  c5 {[%clk 0:02:40]} 41. Qxd5 {[%clk 0:02:38]}  cxd4 {[%clk 0:02:40]} 42. exd4 {[%clk 0:02:27]}  Qc2 {[%clk 0:02:26]} 43. Bf5 {[%clk 0:02:14]}  Qd2 {[%clk 0:02:21]} 44. Qf3 {[%clk 0:01:51]}  Qxd4 {[%clk 0:01:54]} 45. Qxb7 {[%clk 0:01:27]}  Rh2+ {[%clk 0:01:53]} 46. Kxh2 {[%clk 0:01:26]}  Qxf2+ {[%clk 0:01:55]} 47. Qg2 {[%clk 0:01:03]}  Qxf5 {[%clk 0:01:57]} 48. Rb4 {[%clk 0:00:30]}  Qh5+ {[%clk 0:01:54]} 49. Qh3 {[%clk 0:00:28]}  Qe2+ {[%clk 0:01:53]} 50. Qg2 {[%clk 0:00:29]}  Qh5+ {[%clk 0:01:54]} 51. Rh4 {[%clk 0:00:24]}  Bxh4 {[%clk 0:01:55]} 52. gxh4+ {[%clk 0:00:26]}  Kf8 {[%clk 0:01:49]} 53. Qa8+ {[%clk 0:00:19]}  Kg7 {[%clk 0:01:49]} 54. Qg2+ {[%clk 0:00:20]}  Kf8 {[%clk 0:01:50]} 55. Qg5 {[%clk 0:00:18]}  Qe2+ {[%clk 0:01:51]} 56. Kg3 {[%clk 0:00:19]}  Qd3+ {[%clk 0:01:47]} 57. Kf2 {[%clk 0:00:20]}  Qc2+ {[%clk 0:01:39]} 58. Ke3 {[%clk 0:00:21]}  Qb3+ {[%clk 0:01:36]} 59. Ke4 {[%clk 0:00:20]}  Qc4+ {[%clk 0:01:36]} 60. Kf3 {[%clk 0:00:21]}  Qd3+ {[%clk 0:01:36]} 61. Kg4 {[%clk 0:00:20]}  Qe2+ {[%clk 0:01:35]} 62. Kg3 {[%clk 0:00:16]}  Qd3+ {[%clk 0:01:35]} 63. Kf2 {[%clk 0:00:14]}  Qc2+ {[%clk 0:01:34]} 64. Ke1 {[%clk 0:00:12]}  Qb1+ {[%clk 0:01:34]} 65. Kd2 {[%clk 0:00:11]}  Qb2+ {[%clk 0:01:35]} 66. Kd3 {[%clk 0:00:12]}  Qb3+ {[%clk 0:01:35]} 67. Ke2 {[%clk 0:00:10]}  Qb2+ {[%clk 0:01:31]} 68. Kf3 {[%clk 0:00:10]}  Qb3+ {[%clk 0:01:26]} 69. Kg4 {[%clk 0:00:09]}  Qd1+ {[%clk 0:01:27]} 70. Kf5 {[%clk 0:00:10]}  Qd5+ {[%clk 0:01:21]} 71. Kf4 {[%clk 0:00:09]}  Qc4+ {[%clk 0:01:21]} 72. Kg3 {[%clk 0:00:07]} 1/2-1/2


[Site "Internet"]

[Event "Chessable Masters - Torneo preliminare"]
[White "Bok, Benjamin"]
[Black "Pantsulaia, Levan"]
[WhiteFideId "1017063"]
[BlackFideId "13602071"]
[WhiteElo "2608"]
[BlackElo "2533"]
[Result "0-1"]
[Round "3"]
[TimeControl "600+2"]
[Date "2023.03.13"]
[WhiteClock "0:00:04"]
[BlackClock "0:00:54"]

1. d4 {[%clk 0:10:01]}  c5 {[%clk 0:09:59]} 2. d5 {[%clk 0:10:00]}  g6 {[%clk 0:10:01]} 3. e4 {[%clk 0:10:00]}  Bg7 {[%clk 0:10:02]} 4. Nc3 {[%clk 0:09:59]}  d6 {[%clk 0:10:03]} 5. Bb5+ {[%clk 0:10:00]}  Bd7 {[%clk 0:10:03]} 6. a4 {[%clk 0:10:00]}  Nf6 {[%clk 0:10:05]} 7. Nf3 {[%clk 0:10:00]}  O-O {[%clk 0:10:06]} 8. h3 {[%clk 0:10:01]}  Bxb5 {[%clk 0:10:07]} 9. axb5 {[%clk 0:10:01]}  Nbd7 {[%clk 0:10:08]} 10. O-O {[%clk 0:10:01]}  Ne8 {[%clk 0:10:08]} 11. Qe2 {[%clk 0:09:56]}  Nc7 {[%clk 0:10:10]} 12. Bf4 {[%clk 0:09:52]}  Nb6 {[%clk 0:10:11]} 13. Rad1 {[%clk 0:09:37]}  Qd7 {[%clk 0:10:03]} 14. e5 {[%clk 0:09:36]}  f6 {[%clk 0:10:04]} 15. exd6 {[%clk 0:05:20]}  exd6 {[%clk 0:10:06]} 16. Nd2 {[%clk 0:05:19]}  f5 {[%clk 0:09:33]} 17. Ndb1 {[%clk 0:03:58]}  Rfe8 {[%clk 0:08:58]} 18. Qd3 {[%clk 0:03:49]}  c4 {[%clk 0:08:53]} 19. Qg3 {[%clk 0:03:45]}  Nxb5 {[%clk 0:08:53]} 20. Nxb5 {[%clk 0:02:56]}  Qxb5 {[%clk 0:08:55]} 21. Na3 {[%clk 0:02:55]}  Qxb2 {[%clk 0:08:27]} 22. Bxd6 {[%clk 0:02:54]}  Rad8 {[%clk 0:08:07]} 23. Bc7 {[%clk 0:02:33]}  Rxd5 {[%clk 0:08:05]} 24. Bxb6 {[%clk 0:02:29]}  Rxd1 {[%clk 0:08:03]} 25. Rxd1 {[%clk 0:02:30]}  axb6 {[%clk 0:07:02]} 26. Qf3 {[%clk 0:02:28]}  c3 {[%clk 0:06:15]} 27. Qd5+ {[%clk 0:01:29]}  Kh8 {[%clk 0:06:15]} 28. Qf7 {[%clk 0:01:28]}  Ra8 {[%clk 0:04:57]} 29. Rd7 {[%clk 0:00:55]}  Qc1+ {[%clk 0:04:44]} 30. Kh2 {[%clk 0:00:56]}  Qf4+ {[%clk 0:04:45]} 31. Kg1 {[%clk 0:00:56]}  Qe5 {[%clk 0:04:46]} 32. g3 {[%clk 0:00:05]}  Qf6 {[%clk 0:03:31]} 33. Qd5 {[%clk 0:00:06]}  Rxa3 {[%clk 0:01:55]} 34. Rf7 {[%clk 0:00:06]}  Ra1+ {[%clk 0:01:45]} 35. Kh2 {[%clk 0:00:06]}  Rd1 {[%clk 0:01:43]} 36. Qxb7 {[%clk 0:00:03]}  Qd4 {[%clk 0:01:41]} 37. Qc8+ {[%clk 0:00:03]}  Qd8 {[%clk 0:01:42]} 38. Qb7 {[%clk 0:00:04]}  Qg8 {[%clk 0:01:29]} 39. Rc7 {[%clk 0:00:04]}  Rd8 {[%clk 0:01:25]} 40. Qxb6 {[%clk 0:00:05]}  Qd5 {[%clk 0:01:16]} 41. Qa7 {[%clk 0:00:04]}  Qd4 {[%clk 0:00:56]} 42. Rxg7 {[%clk 0:00:03]}  Qxg7 {[%clk 0:00:57]} 43. Qc5 {[%clk 0:00:04]}  Qd4 {[%clk 0:00:54]} 0-1


[Site "Internet"]

[Event "Chessable Masters - Torneo preliminare"]
[White "Hammer, Jon Ludvig"]
[Black "Raja, Rithvik R"]
[WhiteFideId "1503707"]
[BlackFideId "35007394"]
[WhiteElo "2647"]
[BlackElo "2387"]
[Result "1-0"]
[Round "3"]
[TimeControl "600+2"]
[Date "2023.03.13"]
[WhiteClock "0:04:45"]
[BlackClock "0:06:33"]

1. d4 {[%clk 0:09:57]}  Nf6 {[%clk 0:09:59]} 2. c4 {[%clk 0:09:52]}  e6 {[%clk 0:09:59]} 3. Nc3 {[%clk 0:09:45]}  Bb4 {[%clk 0:09:59]} 4. e3 {[%clk 0:09:42]}  O-O {[%clk 0:09:54]} 5. Bd3 {[%clk 0:09:37]}  c5 {[%clk 0:09:47]} 6. Ne2 {[%clk 0:09:34]}  d5 {[%clk 0:09:27]} 7. cxd5 {[%clk 0:09:34]}  cxd4 {[%clk 0:09:21]} 8. exd4 {[%clk 0:09:34]}  Nxd5 {[%clk 0:09:23]} 9. O-O {[%clk 0:09:32]}  Nc6 {[%clk 0:09:19]} 10. a3 {[%clk 0:09:32]}  Be7 {[%clk 0:09:10]} 11. Bc2 {[%clk 0:09:18]}  b6 {[%clk 0:08:55]} 12. Qd3 {[%clk 0:09:11]}  g6 {[%clk 0:08:48]} 13. Bh6 {[%clk 0:09:05]}  Re8 {[%clk 0:08:47]} 14. Nxd5 {[%clk 0:08:57]}  Qxd5 {[%clk 0:08:42]} 15. Bb3 {[%clk 0:08:44]}  Qd7 {[%clk 0:08:11]} 16. d5 {[%clk 0:08:03]}  exd5 {[%clk 0:08:00]} 17. Bxd5 {[%clk 0:06:10]}  Bf8 {[%clk 0:07:10]} 18. Bxf8 {[%clk 0:05:58]}  Rxf8 {[%clk 0:07:12]} 19. Nf4 {[%clk 0:05:28]}  Bb7 {[%clk 0:06:44]} 20. Nxg6 {[%clk 0:05:12]}  hxg6 {[%clk 0:06:31]} 21. Qxg6+ {[%clk 0:05:11]}  Kh8 {[%clk 0:06:32]} 22. Qh6+ {[%clk 0:04:53]}  Kg8 {[%clk 0:06:33]} 23. Rad1 {[%clk 0:04:45]} 1-0


[Site "Internet"]

[Event "Chessable Masters - Torneo preliminare"]
[White "Makhnev, Denis"]
[Black "Tan, Zhongyi"]
[WhiteFideId "13707647"]
[BlackFideId "8603642"]
[WhiteElo "2505"]
[BlackElo "2517"]
[Result "1-0"]
[Round "3"]
[TimeControl "600+2"]
[Date "2023.03.13"]
[WhiteClock "0:00:10"]
[BlackClock "0:00:04"]

1. d4 {[%clk 0:09:57]}  d5 {[%clk 0:09:59]} 2. c4 {[%clk 0:09:50]}  e6 {[%clk 0:10:00]} 3. Nf3 {[%clk 0:09:51]}  Nf6 {[%clk 0:10:00]} 4. Nc3 {[%clk 0:09:53]}  Be7 {[%clk 0:10:00]} 5. Bf4 {[%clk 0:09:53]}  O-O {[%clk 0:10:01]} 6. e3 {[%clk 0:09:55]}  c5 {[%clk 0:10:02]} 7. dxc5 {[%clk 0:09:52]}  Bxc5 {[%clk 0:10:04]} 8. Qc2 {[%clk 0:09:53]}  Nc6 {[%clk 0:10:01]} 9. Rd1 {[%clk 0:09:53]}  Qa5 {[%clk 0:09:59]} 10. a3 {[%clk 0:09:51]}  Be7 {[%clk 0:09:59]} 11. Nd2 {[%clk 0:07:25]}  e5 {[%clk 0:05:31]} 12. Bg5 {[%clk 0:07:23]}  d4 {[%clk 0:04:57]} 13. Nb3 {[%clk 0:07:22]}  Qd8 {[%clk 0:04:58]} 14. Bxf6 {[%clk 0:07:23]}  Bxf6 {[%clk 0:04:58]} 15. Nd5 {[%clk 0:07:12]}  dxe3 {[%clk 0:04:00]} 16. fxe3 {[%clk 0:06:34]}  e4 {[%clk 0:03:35]} 17. Be2 {[%clk 0:06:09]}  Bh4+ {[%clk 0:02:53]} 18. g3 {[%clk 0:05:57]}  Bg5 {[%clk 0:02:50]} 19. h4 {[%clk 0:05:14]}  Bh6 {[%clk 0:02:45]} 20. g4 {[%clk 0:04:36]}  g6 {[%clk 0:02:19]} 21. g5 {[%clk 0:03:27]}  Bg7 {[%clk 0:02:19]} 22. Nf6+ {[%clk 0:03:29]}  Bxf6 {[%clk 0:02:20]} 23. Rxd8 {[%clk 0:03:30]}  Bxd8 {[%clk 0:02:22]} 24. Nc5 {[%clk 0:00:17]}  Bf5 {[%clk 0:01:56]} 25. Nxb7 {[%clk 0:00:10]}  Bc7 {[%clk 0:01:57]} 26. O-O {[%clk 0:00:11]}  Ne5 {[%clk 0:01:54]} 27. Nc5 {[%clk 0:00:06]}  Rad8 {[%clk 0:01:49]} 28. Nxe4 {[%clk 0:00:05]}  Kh8 {[%clk 0:01:44]} 29. Rxf5 {[%clk 0:00:04]}  gxf5 {[%clk 0:01:44]} 30. Nf6 {[%clk 0:00:06]}  Ng6 {[%clk 0:01:38]} 31. Nh5 {[%clk 0:00:07]}  Be5 {[%clk 0:01:30]} 32. c5 {[%clk 0:00:04]}  Nxh4 {[%clk 0:01:22]} 33. c6 {[%clk 0:00:05]}  Rg8 {[%clk 0:01:17]} 34. Qc5 {[%clk 0:00:06]}  Rxg5+ {[%clk 0:01:17]} 35. Kf1 {[%clk 0:00:08]}  f6 {[%clk 0:01:01]} 36. Nxf6 {[%clk 0:00:06]}  Bxf6 {[%clk 0:00:54]} 37. c7 {[%clk 0:00:07]}  Rc8 {[%clk 0:00:32]} 38. Ba6 {[%clk 0:00:08]}  Rcg8 {[%clk 0:00:22]} 39. c8=Q {[%clk 0:00:09]}  Rg1+ {[%clk 0:00:22]} 40. Ke2 {[%clk 0:00:09]}  Rg2+ {[%clk 0:00:23]} 41. Kd3 {[%clk 0:00:08]}  Rxc8 {[%clk 0:00:23]} 42. Qxc8+ {[%clk 0:00:10]}  Kg7 {[%clk 0:00:25]} 43. b4 {[%clk 0:00:09]}  Ra2 {[%clk 0:00:21]} 44. Qc7+ {[%clk 0:00:04]}  Kg6 {[%clk 0:00:12]} 45. Qa5 {[%clk 0:00:04]}  Nf3 {[%clk 0:00:10]} 46. Qb5 {[%clk 0:00:02]}  Rd2+ {[%clk 0:00:05]} 47. Kc4 {[%clk 0:00:03]}  Rb2 {[%clk 0:00:03]} 48. Qe8+ {[%clk 0:00:04]}  Kg5 {[%clk 0:00:03]} 49. Qg8+ {[%clk 0:00:05]}  Kh6 {[%clk 0:00:05]} 50. Bb7 {[%clk 0:00:05]}  Ne5+ {[%clk 0:00:05]} 51. Kb5 {[%clk 0:00:06]}  Rd2 {[%clk 0:00:03]} 52. Qe6 {[%clk 0:00:07]}  Kg5 {[%clk 0:00:04]} 53. Bc8 {[%clk 0:00:08]}  Rf2 {[%clk 0:00:04]} 54. Qg8+ {[%clk 0:00:09]}  Kh6 {[%clk 0:00:05]} 55. Ka6 {[%clk 0:00:10]}  Bg5 {[%clk 0:00:04]} 56. Qf8+ {[%clk 0:00:10]}  Kh5 {[%clk 0:00:04]} 57. Bxf5 {[%clk 0:00:09]}  Ng6 {[%clk 0:00:04]} 58. Bxg6+ {[%clk 0:00:10]} 1-0


[Site "Internet"]

[Event "Chessable Masters - Torneo preliminare"]
[White "Sjugirov, Sanan"]
[Black "Vetoshko, Volodymyr"]
[WhiteFideId "4189302"]
[BlackFideId "14122480"]
[WhiteElo "2543"]
[BlackElo "2457"]
[Result "1/2-1/2"]
[Round "3"]
[TimeControl "600+2"]
[Date "2023.03.13"]
[WhiteClock "0:03:24"]
[BlackClock "0:00:13"]

1. e4 {[%clk 0:10:01]}  c5 {[%clk 0:09:51]} 2. Nf3 {[%clk 0:10:01]}  e6 {[%clk 0:09:52]} 3. Nc3 {[%clk 0:10:01]}  a6 {[%clk 0:09:53]} 4. d4 {[%clk 0:09:58]}  cxd4 {[%clk 0:09:55]} 5. Nxd4 {[%clk 0:10:00]}  b5 {[%clk 0:09:56]} 6. Bd3 {[%clk 0:09:55]}  Bb7 {[%clk 0:09:56]} 7. O-O {[%clk 0:09:50]}  Nc6 {[%clk 0:09:56]} 8. Nxc6 {[%clk 0:09:49]}  Bxc6 {[%clk 0:09:58]} 9. Re1 {[%clk 0:09:47]}  Qb8 {[%clk 0:09:59]} 10. a4 {[%clk 0:09:16]}  bxa4 {[%clk 0:09:10]} 11. Nxa4 {[%clk 0:09:07]}  Bd6 {[%clk 0:09:09]} 12. h3 {[%clk 0:09:05]}  Ne7 {[%clk 0:09:05]} 13. Be3 {[%clk 0:08:40]}  Bh2+ {[%clk 0:07:41]} 14. Kh1 {[%clk 0:08:40]}  Bf4 {[%clk 0:07:43]} 15. b3 {[%clk 0:06:04]}  Bxe3 {[%clk 0:07:34]} 16. Rxe3 {[%clk 0:06:05]}  O-O {[%clk 0:07:19]} 17. Qd2 {[%clk 0:05:48]}  f5 {[%clk 0:07:07]} 18. exf5 {[%clk 0:05:36]}  Nxf5 {[%clk 0:07:08]} 19. Bxf5 {[%clk 0:05:38]}  Rxf5 {[%clk 0:07:06]} 20. Nc3 {[%clk 0:05:39]}  Qf4 {[%clk 0:06:45]} 21. f3 {[%clk 0:05:33]}  Bxf3 {[%clk 0:05:08]} 22. gxf3 {[%clk 0:04:41]}  Rh5 {[%clk 0:05:07]} 23. Kg2 {[%clk 0:04:43]}  Qg5+ {[%clk 0:04:17]} 24. Kh2 {[%clk 0:03:36]}  Qf4+ {[%clk 0:04:08]} 25. Kg2 {[%clk 0:03:35]}  Qg5+ {[%clk 0:04:09]} 26. Kh2 {[%clk 0:03:36]}  Qh6 {[%clk 0:02:30]} 27. f4 {[%clk 0:03:18]}  Qxf4+ {[%clk 0:02:29]} 28. Kg2 {[%clk 0:03:18]}  Rg5+ {[%clk 0:01:24]} 29. Kh1 {[%clk 0:03:18]}  Rg3 {[%clk 0:01:25]} 30. Nd5 {[%clk 0:03:19]}  Rxh3+ {[%clk 0:01:11]} 31. Kg1 {[%clk 0:03:21]}  Rg3+ {[%clk 0:00:45]} 32. Kh1 {[%clk 0:03:22]}  Rh3+ {[%clk 0:00:20]} 33. Kg1 {[%clk 0:03:23]}  Rg3+ {[%clk 0:00:21]} 34. Kh1 {[%clk 0:03:24]}  Rh3+ {[%clk 0:00:13]} 1/2-1/2


[Site "Internet"]

[Event "Chessable Masters - Torneo preliminare"]
[White "Tregubov, Pavel V."]
[Black "Rustemov, Alexander"]
[WhiteFideId "4115341"]
[BlackFideId "4119002"]
[WhiteElo "2522"]
[BlackElo "2494"]
[Result "1-0"]
[Round "3"]
[TimeControl "600+2"]
[Date "2023.03.13"]
[WhiteClock "0:00:14"]
[BlackClock "0:00:06"]

1. e4 {[%clk 0:10:01]}  e6 {[%clk 0:09:59]} 2. d4 {[%clk 0:09:57]}  d5 {[%clk 0:10:00]} 3. e5 {[%clk 0:09:56]}  c5 {[%clk 0:10:01]} 4. c3 {[%clk 0:09:57]}  Qb6 {[%clk 0:10:02]} 5. Nf3 {[%clk 0:09:57]}  Bd7 {[%clk 0:10:03]} 6. Be2 {[%clk 0:09:57]}  Bb5 {[%clk 0:10:02]} 7. O-O {[%clk 0:09:58]}  Bxe2 {[%clk 0:10:02]} 8. Qxe2 {[%clk 0:09:59]}  Qa6 {[%clk 0:10:04]} 9. Qd1 {[%clk 0:09:09]}  cxd4 {[%clk 0:10:01]} 10. cxd4 {[%clk 0:09:09]}  Bb4 {[%clk 0:09:59]} 11. a3 {[%clk 0:08:43]}  Ne7 {[%clk 0:09:57]} 12. Bg5 {[%clk 0:07:22]}  Nbc6 {[%clk 0:09:27]} 13. Qb3 {[%clk 0:07:06]}  Ba5 {[%clk 0:09:23]} 14. Nc3 {[%clk 0:06:50]}  Bxc3 {[%clk 0:09:23]} 15. Qxc3 {[%clk 0:06:51]}  O-O {[%clk 0:09:22]} 16. b4 {[%clk 0:06:41]}  Rfc8 {[%clk 0:09:18]} 17. Qb2 {[%clk 0:06:41]}  h6 {[%clk 0:08:07]} 18. Bd2 {[%clk 0:04:55]}  Qd3 {[%clk 0:07:17]} 19. Rfc1 {[%clk 0:04:37]}  Nd8 {[%clk 0:06:19]} 20. a4 {[%clk 0:03:55]}  Rc4 {[%clk 0:06:05]} 21. Ra3 {[%clk 0:03:43]}  Qe4 {[%clk 0:05:55]} 22. Re3 {[%clk 0:03:40]}  Qf5 {[%clk 0:05:44]} 23. Bc3 {[%clk 0:02:45]}  Rac8 {[%clk 0:05:42]} 24. Nd2 {[%clk 0:02:42]}  R4c7 {[%clk 0:05:37]} 25. b5 {[%clk 0:02:42]}  b6 {[%clk 0:05:03]} 26. a5 {[%clk 0:01:36]}  Nb7 {[%clk 0:05:01]} 27. axb6 {[%clk 0:01:22]}  axb6 {[%clk 0:05:03]} 28. Ree1 {[%clk 0:01:21]}  g5 {[%clk 0:04:27]} 29. g3 {[%clk 0:01:09]}  Ng6 {[%clk 0:04:11]} 30. Nf1 {[%clk 0:01:09]}  Qf3 {[%clk 0:02:58]} 31. Bd2 {[%clk 0:01:04]}  Qd3 {[%clk 0:02:23]} 32. Re3 {[%clk 0:00:58]}  Qf5 {[%clk 0:02:21]} 33. Rec3 {[%clk 0:00:57]}  Rxc3 {[%clk 0:02:11]} 34. Rxc3 {[%clk 0:00:58]}  Rb8 {[%clk 0:01:25]} 35. Rc6 {[%clk 0:00:55]}  Nd8 {[%clk 0:01:19]} 36. Rc7 {[%clk 0:00:56]}  Ra8 {[%clk 0:01:13]} 37. Ne3 {[%clk 0:00:39]}  Qd3 {[%clk 0:01:11]} 38. Qc3 {[%clk 0:00:36]}  Qe2 {[%clk 0:00:55]} 39. Rc8 {[%clk 0:00:21]}  Rxc8 {[%clk 0:00:46]} 40. Qxc8 {[%clk 0:00:22]}  Qxd2 {[%clk 0:00:35]} 41. Qxd8+ {[%clk 0:00:23]}  Kg7 {[%clk 0:00:36]} 42. Qxb6 {[%clk 0:00:21]}  h5 {[%clk 0:00:27]} 43. Qc5 {[%clk 0:00:21]}  Qe1+ {[%clk 0:00:25]} 44. Kg2 {[%clk 0:00:21]}  h4 {[%clk 0:00:26]} 45. Qc2 {[%clk 0:00:14]}  Qb4 {[%clk 0:00:26]} 46. Qd3 {[%clk 0:00:13]}  Qb2 {[%clk 0:00:22]} 47. Ng4 {[%clk 0:00:12]}  Ne7 {[%clk 0:00:19]} 48. Qe3 {[%clk 0:00:12]}  Kg6 {[%clk 0:00:17]} 49. Qd3+ {[%clk 0:00:12]}  Nf5 {[%clk 0:00:18]} 50. Ne3 {[%clk 0:00:13]}  Qxd4 {[%clk 0:00:17]} 51. Qxd4 {[%clk 0:00:13]}  Nxd4 {[%clk 0:00:19]} 52. b6 {[%clk 0:00:14]}  hxg3 {[%clk 0:00:16]} 53. hxg3 {[%clk 0:00:15]}  Nc6 {[%clk 0:00:16]} 54. b7 {[%clk 0:00:16]}  g4 {[%clk 0:00:14]} 55. Nxg4 {[%clk 0:00:16]}  Kf5 {[%clk 0:00:15]} 56. f3 {[%clk 0:00:14]}  Kg6 {[%clk 0:00:07]} 57. Kf2 {[%clk 0:00:15]}  Kg7 {[%clk 0:00:08]} 58. Nf6 {[%clk 0:00:13]}  Nb8 {[%clk 0:00:08]} 59. Ke3 {[%clk 0:00:13]}  Kf8 {[%clk 0:00:10]} 60. Kd4 {[%clk 0:00:14]}  Ke7 {[%clk 0:00:12]} 61. Kc5 {[%clk 0:00:16]}  Kd8 {[%clk 0:00:13]} 62. Kd6 {[%clk 0:00:15]}  d4 {[%clk 0:00:14]} 63. Ne4 {[%clk 0:00:16]}  d3 {[%clk 0:00:15]} 64. f4 {[%clk 0:00:15]}  Nd7 {[%clk 0:00:14]} 65. g4 {[%clk 0:00:16]}  Nb8 {[%clk 0:00:15]} 66. f5 {[%clk 0:00:16]}  exf5 {[%clk 0:00:16]} 67. gxf5 {[%clk 0:00:17]}  Nd7 {[%clk 0:00:06]} 68. e6 {[%clk 0:00:14]}  fxe6 {[%clk 0:00:05]} 69. f6 {[%clk 0:00:13]}  d2 {[%clk 0:00:05]} 70. Nxd2 {[%clk 0:00:13]}  e5 {[%clk 0:00:06]} 71. f7 {[%clk 0:00:12]}  e4 {[%clk 0:00:06]} 72. b8=Q+ {[%clk 0:00:12]}  Nxb8 {[%clk 0:00:06]} 73. f8=Q# {[%clk 0:00:14]} 1-0


[Site "Internet"]

[Event "Chessable Masters - Torneo preliminare"]
[White "Salgado Lopez, Ivan"]
[Black "Hong, Andrew"]
[WhiteFideId "2257327"]
[BlackFideId "2099438"]
[WhiteElo "2554"]
[BlackElo "2549"]
[Result "1-0"]
[Round "3"]
[TimeControl "600+2"]
[Date "2023.03.13"]
[WhiteClock "0:00:21"]
[BlackClock "0:00:04"]

1. e4 {[%clk 0:09:43]}  e5 {[%clk 0:09:58]} 2. Nf3 {[%clk 0:09:44]}  Nf6 {[%clk 0:09:59]} 3. Nc3 {[%clk 0:09:40]}  Nc6 {[%clk 0:09:59]} 4. h3 {[%clk 0:09:42]}  g6 {[%clk 0:09:40]} 5. d4 {[%clk 0:09:40]}  exd4 {[%clk 0:09:40]} 6. Nxd4 {[%clk 0:09:41]}  Bg7 {[%clk 0:09:40]} 7. Nxc6 {[%clk 0:09:38]}  bxc6 {[%clk 0:09:39]} 8. Bd3 {[%clk 0:09:39]}  O-O {[%clk 0:09:37]} 9. O-O {[%clk 0:09:37]}  Re8 {[%clk 0:09:27]} 10. Bg5 {[%clk 0:09:36]}  d6 {[%clk 0:09:12]} 11. f4 {[%clk 0:09:30]}  Rb8 {[%clk 0:09:08]} 12. Rb1 {[%clk 0:09:30]}  Bb7 {[%clk 0:07:49]} 13. Bh4 {[%clk 0:07:49]}  Qc8 {[%clk 0:07:42]} 14. e5 {[%clk 0:06:41]}  dxe5 {[%clk 0:06:41]} 15. Bxf6 {[%clk 0:06:31]}  Bxf6 {[%clk 0:06:39]} 16. Ne4 {[%clk 0:06:32]}  Bg7 {[%clk 0:06:26]} 17. f5 {[%clk 0:06:31]}  c5 {[%clk 0:05:32]} 18. fxg6 {[%clk 0:05:31]}  hxg6 {[%clk 0:05:28]} 19. Bc4 {[%clk 0:05:29]}  Bxe4 {[%clk 0:05:01]} 20. Rxf7 {[%clk 0:05:29]}  Rb4 {[%clk 0:03:45]} 21. Qe2 {[%clk 0:04:50]}  Rxc4 {[%clk 0:03:10]} 22. Qxc4 {[%clk 0:04:49]}  Qe6 {[%clk 0:02:59]} 23. Rxg7+ {[%clk 0:04:48]}  Kxg7 {[%clk 0:03:00]} 24. Qxe4 {[%clk 0:04:50]}  Qxa2 {[%clk 0:02:54]} 25. c4 {[%clk 0:04:41]}  Re7 {[%clk 0:02:44]} 26. h4 {[%clk 0:04:26]}  Qa6 {[%clk 0:02:07]} 27. Rd1 {[%clk 0:04:14]}  Qf6 {[%clk 0:02:03]} 28. Rd5 {[%clk 0:04:07]}  Qf4 {[%clk 0:01:31]} 29. Qxf4 {[%clk 0:04:00]}  exf4 {[%clk 0:01:33]} 30. Kf2 {[%clk 0:04:00]}  Kf6 {[%clk 0:01:05]} 31. Rxc5 {[%clk 0:03:55]}  Re3 {[%clk 0:00:53]} 32. b4 {[%clk 0:03:41]}  Rc3 {[%clk 0:00:38]} 33. b5 {[%clk 0:03:37]}  Ke6 {[%clk 0:00:39]} 34. Rxc7 {[%clk 0:01:39]}  Kf5 {[%clk 0:00:40]} 35. c5 {[%clk 0:01:33]}  Kg4 {[%clk 0:00:38]} 36. c6 {[%clk 0:01:33]}  Rc2+ {[%clk 0:00:38]} 37. Kf1 {[%clk 0:01:30]}  Rb2 {[%clk 0:00:09]} 38. Rxa7 {[%clk 0:01:22]}  Rxb5 {[%clk 0:00:10]} 39. Rg7 {[%clk 0:01:23]}  Kf5 {[%clk 0:00:05]} 40. c7 {[%clk 0:01:11]}  Rc5 {[%clk 0:00:06]} 41. Ke2 {[%clk 0:01:13]}  Kf6 {[%clk 0:00:04]} 42. Rh7 {[%clk 0:01:11]}  Kf5 {[%clk 0:00:05]} 43. h5 {[%clk 0:01:02]}  Kg5 {[%clk 0:00:04]} 44. Rd7 {[%clk 0:00:37]}  Kxh5 {[%clk 0:00:03]} 45. Rd5+ {[%clk 0:00:37]}  Rxd5 {[%clk 0:00:05]} 46. c8=Q {[%clk 0:00:39]}  Kg5 {[%clk 0:00:04]} 47. Qe6 {[%clk 0:00:33]}  Rf5 {[%clk 0:00:04]} 48. Kf3 {[%clk 0:00:32]}  Kh5 {[%clk 0:00:06]} 49. Qg8 {[%clk 0:00:31]}  Kh6 {[%clk 0:00:06]} 50. Kg4 {[%clk 0:00:26]}  Rg5+ {[%clk 0:00:05]} 51. Kxf4 {[%clk 0:00:26]}  Rf5+ {[%clk 0:00:06]} 52. Ke4 {[%clk 0:00:24]}  Kg5 {[%clk 0:00:06]} 53. Qg7 {[%clk 0:00:21]}  Rf4+ {[%clk 0:00:07]} 54. Ke3 {[%clk 0:00:22]}  Rf5 {[%clk 0:00:07]} 55. Qe7+ {[%clk 0:00:23]}  Kg4 {[%clk 0:00:06]} 56. Qe6 {[%clk 0:00:24]}  Kg5 {[%clk 0:00:07]} 57. g3 {[%clk 0:00:24]}  Kh5 {[%clk 0:00:05]} 58. Ke4 {[%clk 0:00:20]}  Kg5 {[%clk 0:00:05]} 59. Qe7+ {[%clk 0:00:21]}  Kh5 {[%clk 0:00:04]} 60. Qh4# {[%clk 0:00:21]} 1-0


[Site "Internet"]